bitfinex/quotes_SOLUSD_20220207
["timestamp","ask_amount","ask_price","bid_price","bid_amount"]
[1644208207580,2.36794844,119.75,119.58,12.03]
[1644208207780,46.5142,119.76,119.6,1.87]
[1644208207979,46.5142,119.76,119.61,16.206]
[1644208208181,46.5142,119.76,119.61,22.206]
[1644208208380,46.5142,119.76,119.62,165.67698871]
[1644208208582,47.61259357,119.75,119.63,16.206]
[1644208208783,47.61259357,119.75,119.63,28.9861]
[1644208208979,47.61259357,119.75,119.63,37.10383901]
[1644208209384,47.61259357,119.75,119.64,2.11773901]
[1644208209581,47.61259357,119.75,119.64,18.03]
[1644208209782,66.14419357,119.75,119.64,12.03]
[1644208209981,2.16357196,119.74,119.64,12.03]
[1644208210181,41.70448136,119.73,119.64,12.03]
[1644208210684,47.95448136,119.73,119.62,24.5626]
[1644208210884,60.48908136,119.73,119.6,39.6373]
[1644208211083,49.1978,119.72,119.6,35.4613]
[1644208211410,41.62996512,119.71,119.6,35.4613]
[1644208211582,47.62996512,119.71,119.61,12.03]
[1644208211782,47.87996512,119.71,119.61,12.03]
[1644208211983,47.87996512,119.71,119.61,18.03]
[1644208212586,50.04353708,119.71,119.61,18.03]
[1644208212885,62.57963708,119.71,119.61,6.0]
[1644208213086,62.57963708,119.71,119.59,18.03]
[1644208213789,60.16606512,119.71,119.59,14.14823394]
[1644208213989,2.16357196,119.7,119.59,14.14823394]
[1644208214189,12.5395,119.68,119.59,14.14823394]
[1644208214389,34.38768034,119.67,119.59,14.14823394]
[1644208214989,34.63768034,119.67,119.59,14.39823394]
[1644208215790,47.17758034,119.67,119.59,0.25]
[1644208215990,53.17758034,119.67,119.59,0.25]
[1644208216189,53.17758034,119.67,119.56,2.36823394]
[1644208216594,53.17758034,119.67,119.56,8.36823394]
[1644208216790,53.17758034,119.67,119.56,2.36823394]
[1644208217091,53.17758034,119.67,119.56,20.79853242]
[1644208217590,76.97148034,119.67,119.56,20.79853242]
[1644208218091,76.97148034,119.67,119.57,2.11823394]
[1644208218391,76.97148034,119.67,119.57,2.36823394]
[1644208221917,76.97148034,119.67,119.55,12.03]
[1644208222115,2.16357196,119.66,119.54,25.42264961]
[1644208222417,34.28813793,119.65,119.54,23.3047]
[1644208222614,34.28813793,119.65,119.55,2.11794961]
[1644208222814,34.28813793,119.65,119.56,12.03]
[1644208223215,34.28813793,119.65,119.56,6.0]
[1644208223414,34.28813793,119.65,119.54,12.03]
[1644208223616,46.83013793,119.65,119.54,30.5733]
[1644208223814,47.08013793,119.65,119.54,30.5733]
[1644208224013,53.08013793,119.65,119.54,32.69124961]
[1644208224215,53.08013793,119.65,119.54,20.14794961]
[1644208224815,53.08013793,119.65,119.54,12.03]
[1644208225018,12.5494,119.61,119.51,2.11794961]
[1644208225216,12.5494,119.61,119.5,1.16287762]
[1644208225217,45.06009647,119.6,119.48,1.16287762]
[1644208225417,12.03,119.59,119.46,1.16287762]
[1644208225617,47.59024927,119.57,119.44,1.16287762]
[1644208225816,188.44698022,119.55,119.39,14.3142841]
[1644208226017,12.5597,119.5,119.36,11.02940029]
[1644208226217,35.39882728,119.49,119.35,2.2842841]
[1644208226415,35.39882728,119.49,119.35,2.33558139]
[1644208226618,43.81239924,119.49,119.35,2.33558139]
[1644208226820,12.03,119.48,119.35,2.33558139]
[1644208227022,12.5638,119.45,119.34,14.95633024]
[1644208227219,34.89548427,119.44,119.34,12.83838063]
[1644208227621,41.14548427,119.44,119.34,12.83838063]
[1644208227820,41.14548427,119.44,119.34,14.95633024]
[1644208228020,41.14548427,119.44,119.34,13.45633024]
[1644208228221,12.5623,119.47,119.34,32.01973024]
[1644208228420,6.25,119.48,119.34,44.81549673]
[1644208228623,29.508,119.49,119.34,44.81549673]
[1644208228821,29.508,119.49,119.34,59.01049867]
[1644208229224,47.16697146,119.48,119.34,59.26049867]
[1644208229527,47.16697146,119.48,119.38,12.5572]
[1644208229822,47.16697146,119.48,119.38,30.8372]
[1644208230028,47.16697146,119.48,119.39,2.11794961]
[1644208230223,47.16697146,119.48,119.39,8.36794961]
[1644208230723,47.16697146,119.48,119.4,2.11794961]
[1644208230929,47.16697146,119.48,119.4,14.67584961]
[1644208231329,53.16697146,119.48,119.38,12.03]
[1644208231530,53.16697146,119.48,119.38,18.03]
[1644208231725,53.41697146,119.48,119.39,2.11794961]
[1644208231925,53.16697146,119.48,119.39,14.67634961]
[1644208232132,47.16697146,119.48,119.39,14.67634961]
[1644208232328,53.41697146,119.48,119.38,18.03]
[1644208232528,53.41697146,119.48,119.37,14.14794961]
[1644208232832,53.41697146,119.48,119.37,2.11794961]
[1644208233027,65.97787146,119.48,119.35,24.5927]
[1644208233228,82.19487146,119.48,119.35,12.5627]
[1644208233429,84.35844342,119.48,119.35,12.5627]
[1644208233627,82.19487146,119.48,119.35,12.5627]
[1644208234032,84.35844342,119.48,119.34,4.186]
[1644208234535,92.15859837,119.48,119.34,4.186]
[1644208234934,92.15859837,119.48,119.34,6.30394961]
[1644208235435,2.16357196,119.47,119.34,6.55394961]
[1644208235635,12.5649,119.44,119.34,2.36794961]
[1644208235837,41.85386265,119.43,119.34,2.36794961]
[1644208236234,48.10386265,119.43,119.32,2.11794961]
[1644208236634,48.10386265,119.43,119.32,8.11794961]
[1644208236835,60.66996265,119.43,119.32,20.68384961]
[1644208237039,60.66996265,119.43,119.33,2.11794961]
[1644208237438,60.66996265,119.43,119.33,8.11794961]
[1644208237836,62.83353461,119.43,119.33,8.36794961]
[1644208238036,62.83353461,119.43,119.33,6.25]
[1644208238237,62.83353461,119.43,119.31,6.0]
[1644208238439,48.28743854,119.41,119.28,12.03]
[1644208238637,47.44964923,119.37,119.27,0.33494154]
[1644208238838,47.69964923,119.37,119.27,0.33494154]
[1644208239037,53.69964923,119.37,119.27,0.33494154]
[1644208239238,42.90033455,119.35,119.24,124.36494154]
[1644208239438,42.90033455,119.35,119.24,24.604]
[1644208239638,61.72593455,119.35,119.24,24.604]
[1644208239841,63.88950651,119.35,119.22,4.191]
[1644208240038,75.91950651,119.35,119.21,2.52578139]
[1644208240239,4.191,119.34,119.21,0.40783178]
[1644208240437,91.02545925,119.33,119.17,0.45044372]
[1644208240639,4.192,119.32,119.17,0.45044372]
[1644208240839,49.04040958,119.31,119.17,0.45044372]
[1644208241142,34.28904164,119.29,119.17,0.45044372]
[1644208241339,40.6599736,119.27,119.17,0.45044372]
[1644208241739,46.9099736,119.27,119.18,2.11794961]
[1644208241940,40.9099736,119.27,119.18,2.11794961]
[1644208242140,6.0,119.31,119.18,8.11794961]
[1644208242443,53.8003,119.32,119.19,12.03]
[1644208242641,53.8003,119.32,119.19,62.06704961]
[1644208242840,54.0503,119.32,119.19,59.9491]
[1644208243243,43.16697313,119.31,119.2,2.11794961]
[1644208243441,43.16697313,119.31,119.2,14.14794961]
[1644208243642,49.16697313,119.31,119.2,32.97544961]
[1644208243841,49.16697313,119.31,119.2,30.8575]
[1644208244041,43.16697313,119.31,119.21,2.11794961]
[1644208244241,43.16697313,119.31,119.22,12.03]
[1644208244440,110.9374,119.36,119.22,12.03]
[1644208244640,116.9374,119.36,119.23,2.11794961]
[1644208244841,116.9374,119.36,119.23,14.39794961]
[1644208245044,110.9374,119.36,119.23,20.14794961]
[1644208245242,35.0386,119.36,119.24,2.11794961]
[1644208245440,43.84414602,119.35,119.24,2.11794961]
[1644208245840,43.84414602,119.35,119.24,14.69104961]
[1644208246041,43.84414602,119.35,119.24,32.72104961]
[1644208246242,43.84414602,119.35,119.25,2.11794961]
[1644208246440,43.84414602,119.35,119.26,10.07]
[1644208246641,43.84414602,119.35,119.26,16.07]
[1644208246841,43.84414602,119.35,119.27,2.11794961]
[1644208247041,43.84414602,119.35,119.27,12.18794961]
[1644208247243,43.84414602,119.35,119.27,18.43794961]
[1644208247442,43.84414602,119.35,119.28,2.11716923]
[1644208247744,43.84414602,119.35,119.28,18.43716923]
[1644208248141,43.84414602,119.35,119.29,2.11716923]
[1644208248342,43.84414602,119.35,119.29,2.36716923]
[1644208248544,43.84414602,119.35,119.29,8.36716923]
[1644208248742,43.84414602,119.35,119.3,2.11716923]
[1644208248945,12.5695,119.41,119.3,2.11716923]
[1644208249146,6.0,119.41,119.3,12.43716923]
[1644208249546,82.3572,119.42,119.31,2.11716923]
[1644208249747,6.0,119.42,119.31,12.43716923]
[1644208249946,40.92519157,119.41,119.31,18.43716923]
[1644208250147,40.92519157,119.41,119.32,2.11716923]
[1644208250349,41.17519157,119.41,119.32,2.36716923]
[1644208250646,40.92519157,119.41,119.32,2.36716923]
[1644208250847,40.92519157,119.41,119.33,2.11716923]
[1644208251047,40.92519157,119.41,119.33,14.68216923]
[1644208251246,40.92519157,119.41,119.33,14.93216923]
[1644208251846,40.92519157,119.41,119.34,2.11716923]
[1644208252046,40.92519157,119.41,119.34,14.68066923]
[1644208252247,40.92519157,119.41,119.34,14.93066923]
[1644208253169,40.92519157,119.41,119.34,12.8135]
[1644208254070,46.92519157,119.41,119.34,0.25]
[1644208254272,46.92519157,119.41,119.32,0.25]
[1644208254672,47.17519157,119.41,119.31,0.25]
[1644208255071,47.17519157,119.41,119.28,18.18711432]
[1644208256072,59.74489157,119.41,119.3,12.5682]
[1644208257273,59.74489157,119.41,119.3,12.8182]
[1644208257774,47.17519157,119.41,119.3,14.93531432]
[1644208257976,46.92519157,119.41,119.3,14.93531432]
[1644208258174,40.92519157,119.41,119.3,31.00531432]
[1644208259377,41.17519157,119.41,119.3,31.00531432]
[1644208259575,40.92519157,119.41,119.3,31.00531432]
[1644208259775,41.17519157,119.41,119.3,31.00531432]
[1644208260579,47.17519157,119.41,119.3,31.00531432]
[1644208260979,47.17519157,119.41,119.3,28.8882]
[1644208262880,46.92519157,119.41,119.3,28.6382]
[1644208263182,46.92519157,119.41,119.3,20.68531432]
[1644208263479,46.92519157,119.41,119.3,18.5682]
[1644208263679,59.49429157,119.41,119.3,18.5682]
[1644208264381,59.74429157,119.41,119.3,18.5682]
[1644208264781,59.74429157,119.41,119.3,18.8182]
[1644208265282,68.07929157,119.41,119.3,18.5682]
[1644208265483,78.14929157,119.41,119.28,12.5704]
[1644208266583,69.81429157,119.41,119.28,20.93751432]
[1644208266982,69.56429157,119.41,119.28,31.00751432]
[1644208267784,69.56429157,119.41,119.28,25.00751432]
[1644208268385,69.81429157,119.41,119.28,31.00751432]
[1644208268685,69.81429157,119.41,119.28,25.00751432]
[1644208268887,69.81429157,119.41,119.28,31.00751432]
[1644208269088,69.56429157,119.41,119.28,20.93751432]
[1644208269586,69.56429157,119.41,119.28,14.93751432]
[1644208269789,69.56429157,119.41,119.28,20.93751432]
[1644208270189,69.56429157,119.41,119.28,14.93751432]
[1644208270591,69.81429157,119.41,119.28,20.93751432]
[1644208270992,71.97786353,119.41,119.28,20.93751432]
[1644208271192,71.97786353,119.41,119.28,14.93751432]
[1644208272093,71.97786353,119.41,119.28,14.68751432]
[1644208272293,76.16686353,119.41,119.26,14.68961432]
[1644208272592,12.574,119.36,119.26,12.5725]
[1644208272792,34.48566331,119.35,119.26,12.5725]
[1644208272992,34.48566331,119.35,119.23,4.189]
[1644208273192,40.48566331,119.35,119.23,58.4540841]
[1644208273397,40.48566331,119.35,119.26,2.11711432]
[1644208273593,40.48566331,119.35,119.26,8.11711432]
[1644208273794,40.48566331,119.35,119.26,8.36711432]
[1644208274995,40.48566331,119.35,119.28,12.5706]
[1644208275194,40.73566331,119.35,119.28,0.25]
[1644208275597,40.73566331,119.35,119.24,8.2842841]
[1644208275797,40.73566331,119.35,119.25,2.35292609]
[1644208275998,40.73566331,119.35,119.24,8.35292609]
[1644208276197,40.73566331,119.35,119.24,6.0]
[1644208276397,40.73566331,119.35,119.24,18.5749]
[1644208276597,40.48566331,119.35,119.24,18.5749]
[1644208276797,40.73566331,119.35,119.25,2.3549879]
[1644208277197,40.73566331,119.35,119.25,8.3549879]
[1644208277396,40.73566331,119.35,119.24,2.2842841]
[1644208277596,40.73566331,119.35,119.24,6.0]
[1644208277798,40.73566331,119.35,119.25,2.3548079]
[1644208278198,40.73566331,119.35,119.25,2.6048079]
[1644208278398,53.31036331,119.35,119.25,2.6048079]
[1644208278601,53.06036331,119.35,119.25,6.25]
[1644208278901,40.48566331,119.35,119.26,2.35329633]
[1644208279098,40.48566331,119.35,119.26,8.35329633]
[1644208279298,40.48566331,119.35,119.26,18.43711432]
[1644208279500,40.48566331,119.35,119.28,12.5703]
[1644208279698,40.48566331,119.35,119.28,12.8203]
[1644208280099,40.73566331,119.35,119.28,12.8203]
[1644208280299,40.73566331,119.35,119.28,0.25]
[1644208280900,40.73566331,119.35,119.24,16.32]
[1644208281899,40.73566331,119.35,119.26,12.573]
[1644208282099,40.73566331,119.35,119.26,18.573]
[1644208282299,40.73566331,119.35,119.26,18.823]
[1644208285703,40.48566331,119.35,119.26,18.823]
[1644208286903,40.48566331,119.35,119.26,20.94011432]
[1644208287102,40.73566331,119.35,119.26,20.94011432]
[1644208287902,40.73566331,119.35,119.26,31.01011432]
[1644208288303,6.0,119.35,119.26,31.01011432]
[1644208288505,23.6455,119.38,119.26,31.01011432]
[1644208288702,23.6455,119.38,119.27,4.63462573]
[1644208288903,23.6455,119.38,119.3,12.5676]
[1644208289106,23.6455,119.38,119.3,28.6376]
[1644208289303,38.58118005,119.37,119.3,28.8876]
[1644208289503,38.58118005,119.37,119.3,31.00471432]
[1644208290806,38.83118005,119.37,119.3,22.8876]
[1644208291007,38.83118005,119.37,119.3,0.25]
[1644208291206,44.83118005,119.37,119.28,14.68831432]
[1644208292007,44.83118005,119.37,119.26,12.5732]
[1644208292209,44.83118005,119.37,119.26,18.5732]
[1644208292410,44.83118005,119.37,119.26,12.5732]
[1644208293010,57.40318005,119.37,119.26,12.5732]
[1644208293210,57.15318005,119.37,119.26,12.5732]
[1644208293810,57.15318005,119.37,119.26,18.8232]
[1644208294011,57.15318005,119.37,119.26,20.94031432]
[1644208294613,57.15318005,119.37,119.26,12.8232]
[1644208295213,44.58118005,119.37,119.27,2.11711432]
[1644208295413,44.58118005,119.37,119.28,2.3546487]
[1644208295614,44.58118005,119.37,119.3,12.5685]
[1644208295913,38.58118005,119.37,119.3,12.8185]
[1644208296113,24.9145,119.39,119.3,12.8185]
[1644208296314,30.9145,119.39,119.3,12.8185]
[1644208296513,30.9145,119.39,119.3,18.8185]
[1644208296717,30.9145,119.39,119.3,31.00561432]
[1644208296916,22.9768,119.4,119.3,25.00561432]
[1644208297217,44.06674212,119.39,119.3,31.00561432]
[1644208297616,50.06674212,119.39,119.27,4.40139842]
[1644208297815,2.16357196,119.38,119.27,4.40139842]
[1644208298018,37.74227038,119.37,119.25,6.4732841]
[1644208298216,43.99227038,119.37,119.26,2.35550834]
[1644208298519,43.99227038,119.37,119.28,2.11711432]
[1644208298717,43.74227038,119.37,119.28,2.11711432]
[1644208298917,43.74227038,119.37,119.28,2.36711432]
[1644208299519,43.74227038,119.37,119.29,12.571]
[1644208299718,43.74227038,119.37,119.29,12.821]
[1644208300320,43.74227038,119.37,119.3,2.11711432]
[1644208300719,37.74227038,119.37,119.3,14.93741432]
[1644208301318,24.0729,119.39,119.31,2.11711432]
[1644208301520,22.9768,119.4,119.31,2.11711432]
[1644208301720,22.9768,119.4,119.31,2.36711432]
[1644208301922,22.9768,119.4,119.31,8.36711432]
[1644208302119,22.9768,119.4,119.32,2.11711432]
[1644208302421,39.89373695,119.39,119.32,2.36711432]
[1644208302620,45.89373695,119.39,119.32,2.11711432]
[1644208303022,45.89373695,119.39,119.29,6.0]
[1644208303220,45.89373695,119.39,119.3,2.11711432]
[1644208303621,45.89373695,119.39,119.31,12.5682]
[1644208303823,45.89373695,119.39,119.31,12.8182]
[1644208304022,45.89373695,119.39,119.31,14.93531432]
[1644208304627,45.89373695,119.39,119.31,12.8182]
[1644208304825,45.89373695,119.39,119.31,14.93531432]
[1644208305024,39.89373695,119.39,119.31,14.93531432]
[1644208305224,40.14373695,119.39,119.31,14.93531432]
[1644208305426,45.89373695,119.39,119.31,14.68531432]
[1644208306225,46.14373695,119.39,119.31,14.68531432]
[1644208306427,46.14373695,119.39,119.31,2.11711432]
[1644208306626,46.14373695,119.39,119.27,2.11711432]
[1644208307129,46.14373695,119.39,119.25,21.99207776]
[1644208307426,22.7711,119.38,119.26,8.35249132]
[1644208307627,28.7711,119.38,119.26,6.0]
[1644208307827,29.0211,119.38,119.26,8.36711432]
[1644208308430,12.5722,119.37,119.26,2.36711432]
[1644208308630,18.5722,119.37,119.26,0.25]
[1644208308827,18.8222,119.37,119.25,12.8233]
[1644208309055,20.98577196,119.37,119.25,12.8233]
[1644208309255,20.98577196,119.37,119.25,14.94041432]
[1644208309458,20.98577196,119.37,119.25,14.69041432]
[1644208309956,18.8222,119.37,119.25,14.69041432]
[1644208310556,18.8222,119.37,119.25,12.5733]
[1644208310756,18.8222,119.37,119.25,12.8233]
[1644208310956,18.8222,119.37,119.26,2.11711432]
[1644208311358,18.8222,119.37,119.26,14.94001432]
[1644208311859,18.8222,119.37,119.26,2.36711432]
[1644208312059,18.8222,119.37,119.26,0.25]
[1644208312262,42.60306418,119.35,119.24,16.73139842]
[1644208312460,12.5746,119.34,119.25,2.35153948]
[1644208312659,18.5746,119.34,119.25,2.35153948]
[1644208312860,18.5746,119.34,119.25,0.25]
[1644208313260,18.5746,119.34,119.26,2.11711432]
[1644208313463,18.5746,119.34,119.25,0.25]
[1644208313861,6.0,119.34,119.26,2.11711432]
[1644208314063,48.60306418,119.35,119.26,2.11711432]
[1644208314263,48.60306418,119.35,119.26,2.36711432]
[1644208314963,42.60306418,119.35,119.26,33.01991432]
[1644208315364,42.60306418,119.35,119.26,48.07132738]
[1644208315564,47.5675,119.36,119.26,48.07132738]
[1644208315764,47.5675,119.36,119.27,2.35068567]
[1644208315963,47.5675,119.36,119.27,14.43068567]
[1644208316164,12.5714,119.38,119.29,12.57]
[1644208316363,211.975,119.4,119.29,12.82]
[1644208316563,46.51234948,119.39,119.3,2.11711432]
[1644208316763,46.51234948,119.39,119.3,2.36711432]
[1644208316964,52.51234948,119.39,119.3,2.36711432]
[1644208317367,52.51234948,119.39,119.31,2.11711432]
[1644208317565,52.76234948,119.39,119.31,2.11711432]
[1644208317764,52.51234948,119.39,119.31,2.36711432]
[1644208318767,52.51234948,119.39,119.32,2.11711432]
[1644208319167,52.51234948,119.39,119.32,2.36711432]
[1644208319767,52.51234948,119.39,119.33,2.11719681]
[1644208320169,52.51234948,119.39,119.33,0.25]
[1644208320767,65.33194948,119.39,119.33,0.25]
[1644208320969,65.33194948,119.39,119.28,12.5704]
[1644208321568,65.33194948,119.39,119.27,14.19719681]
[1644208321767,77.41194948,119.39,119.26,2.2842841]
[1644208321967,12.5741,119.35,119.26,2.3516995]
[1644208322167,46.96151647,119.34,119.26,2.3516995]
[1644208322370,46.96151647,119.34,119.25,14.69059681]
[1644208322570,53.21151647,119.34,119.25,14.69059681]
[1644208323368,52.96151647,119.34,119.25,14.94059681]
[1644208323567,52.96151647,119.34,119.25,14.69059681]
[1644208323768,53.21151647,119.34,119.25,14.69059681]
[1644208323969,65.78631647,119.34,119.25,14.69059681]
[1644208324171,65.53631647,119.34,119.25,14.69059681]
[1644208324469,65.53631647,119.34,119.25,12.5734]
[1644208324771,65.53631647,119.34,119.25,12.8234]
[1644208324969,65.53631647,119.34,119.25,14.94059681]
[1644208325172,52.96151647,119.34,119.25,14.94059681]
[1644208325369,46.96151647,119.34,119.26,2.35191024]
[1644208325569,46.96151647,119.34,119.27,12.5722]
[1644208325770,46.96151647,119.34,119.27,12.8222]
[1644208326169,46.96151647,119.34,119.27,14.93939681]
[1644208326869,46.96151647,119.34,119.27,12.8222]
[1644208327470,46.96151647,119.34,119.27,14.93939681]
[1644208327876,46.96151647,119.34,119.27,12.8222]
[1644208328270,46.96151647,119.34,119.27,14.93939681]
[1644208328669,46.96151647,119.34,119.27,0.25]
[1644208328873,47.21151647,119.34,119.27,0.25]
[1644208329071,47.21151647,119.34,119.25,33.02099681]
[1644208330378,59.78711647,119.34,119.23,11.03615307]
[1644208330574,12.08,119.33,119.19,6.4752841]
[1644208330873,63.3852,119.33,119.18,2.2842841]
[1644208331074,2.16357196,119.32,119.18,2.35878762]
[1644208331273,44.10330608,119.3,119.18,2.35878762]
[1644208331474,12.08,119.29,119.18,2.35878762]
[1644208331774,42.59919875,119.25,119.17,0.45044372]
[1644208332073,48.59919875,119.25,119.17,0.45044372]
[1644208332277,48.84919875,119.25,119.17,0.45044372]
[1644208333076,61.43329875,119.25,119.17,0.45044372]
[1644208338277,6.0,119.25,119.17,0.45044372]
[1644208338678,28.7343,119.26,119.17,0.45044372]
[1644208339279,38.68184009,119.25,119.17,0.45044372]
[1644208340081,22.7343,119.26,119.17,13.03284372]
[1644208340280,22.7343,119.26,119.17,13.28284372]
[1644208340482,22.7343,119.26,119.17,15.39458481]
[1644208340683,22.7343,119.26,119.17,13.28284372]
[1644208341081,42.80292742,119.25,119.17,13.28284372]
[1644208341681,22.7343,119.26,119.17,15.39458481]
[1644208341881,22.7343,119.26,119.17,21.39458481]
[1644208342084,22.7343,119.26,119.17,33.47458481]
[1644208342282,22.6836,119.28,119.17,33.47458481]
[1644208342482,6.0,119.28,119.17,52.61007689]
[1644208342723,23.7673,119.3,119.17,52.61007689]
[1644208342882,45.5833,119.32,119.18,153.35909812]
[1644208343083,161.4989,119.37,119.24,12.5726]
[1644208343385,45.3457,119.36,119.24,24.9026]
[1644208343583,45.3457,119.36,119.25,2.11174109]
[1644208343783,41.35120768,119.35,119.25,2.36174109]
[1644208343982,41.35120768,119.35,119.26,12.08]
[1644208344183,47.35120768,119.35,119.25,0.25]
[1644208344383,47.35120768,119.35,119.26,0.25]
[1644208344683,47.35120768,119.35,119.25,0.25]
[1644208344883,47.60120768,119.35,119.25,0.25]
[1644208345683,47.35120768,119.35,119.23,33.27349208]
[1644208345887,47.60120768,119.35,119.26,14.68504109]
[1644208346085,47.35120768,119.35,119.26,14.93504109]
[1644208348090,47.35120768,119.35,119.26,12.8233]
[1644208348493,47.35120768,119.35,119.26,14.93504109]
[1644208348892,47.35120768,119.35,119.26,12.8233]
[1644208349091,59.92470768,119.35,119.26,14.93504109]
[1644208349491,59.92470768,119.35,119.24,14.68724109]
[1644208349893,59.92470768,119.35,119.24,12.5755]
[1644208350313,60.17470768,119.35,119.24,12.5755]
[1644208350916,74.41827964,119.35,119.22,12.5777]
[1644208351116,12.5786,119.31,119.22,12.5777]
[1644208351317,40.78811862,119.3,119.22,12.5777]
[1644208351515,40.78811862,119.3,119.2,16.11282766]
[1644208351714,47.03811862,119.3,119.2,16.11282766]
[1644208352115,59.61741862,119.3,119.2,1.16933558]
[1644208352515,71.69741862,119.3,119.18,1.16933558]
[1644208352715,121.06679058,119.3,119.17,1.6197793]
[1644208353619,106.82321862,119.3,119.18,14.69444109]
[1644208354016,12.5814,119.28,119.19,2.11174109]
[1644208354215,30.9114,119.28,119.19,2.11174109]
[1644208355016,30.9114,119.28,119.19,2.36174109]
[1644208355416,30.9114,119.28,119.19,0.25]
[1644208355617,30.9114,119.28,119.17,14.4526793]
[1644208355817,30.9114,119.28,119.17,14.2026793]
[1644208356119,30.9114,119.28,119.18,2.11174109]
[1644208356517,30.9114,119.28,119.17,1.6197793]
[1644208356717,30.9114,119.28,119.18,12.5826]
[1644208356917,30.9114,119.28,119.18,15.86367667]
[1644208357721,30.9114,119.28,119.18,16.11367667]
[1644208358628,30.6614,119.28,119.19,1.16933558]
[1644208358825,112.65361862,119.3,119.19,1.41933558]
[1644208359026,112.65361862,119.3,119.22,12.5781]
[1644208359027,87.99391862,119.3,119.22,12.5781]
[1644208359224,40.78811862,119.3,119.22,12.8281]
[1644208359424,40.78811862,119.3,119.23,2.11174109]
[1644208359826,40.78811862,119.3,119.23,2.36174109]
[1644208360226,40.78811862,119.3,119.24,2.11174109]
[1644208360626,40.78811862,119.3,119.24,2.36174109]
[1644208361026,40.78811862,119.3,119.24,14.93784109]
[1644208361429,36.2234,119.32,119.25,2.11174109]
[1644208361628,18.5775,119.32,119.25,2.11174109]
[1644208361828,18.8275,119.32,119.25,2.36174109]
[1644208362229,18.8275,119.32,119.25,0.25]
[1644208362430,38.2965616,119.31,119.22,12.5778]
[1644208362631,38.2965616,119.31,119.23,0.25]
[1644208362632,12.5796,119.3,119.23,0.25]
[1644208362834,44.2965616,119.31,119.23,0.25]
[1644208363233,44.5465616,119.31,119.23,0.25]
[1644208363835,44.5465616,119.31,119.21,1.41933558]
[1644208364032,44.5465616,119.31,119.21,1.16933558]
[1644208364234,44.5465616,119.31,119.22,2.11229168]
[1644208364934,57.1245616,119.31,119.22,14.69099168]
[1644208365133,57.1245616,119.31,119.22,20.69099168]
[1644208365134,6.0,119.31,119.22,20.69099168]
[1644208365333,6.0,119.31,119.23,3.28162726]
[1644208365534,22.9611,119.32,119.23,9.28162726]
[1644208365735,22.9611,119.32,119.24,3.28162726]
[1644208366234,22.9611,119.32,119.25,2.11229168]
[1644208366635,22.9611,119.32,119.25,14.93619168]
[1644208367035,22.9611,119.32,119.25,12.8239]
[1644208367236,22.9611,119.32,119.26,2.11229168]
[1644208367637,22.9611,119.32,119.26,2.36229168]
[1644208368238,22.9611,119.32,119.27,2.11229168]
[1644208368640,22.9611,119.32,119.27,2.36229168]
[1644208369239,22.9611,119.32,119.28,2.11229168]
[1644208369638,23.5197,119.39,119.28,2.36229168]
[1644208369840,72.2867,119.39,119.28,20.44229168]
[1644208370041,72.2867,119.39,119.29,17.72860598]
[1644208370244,41.36848903,119.4,119.3,12.08]
[1644208370441,41.36848903,119.4,119.3,14.19229168]
[1644208370643,41.36848903,119.4,119.3,62.33199168]
[1644208370840,41.36848903,119.4,119.31,2.11229168]
[1644208371242,41.36848903,119.4,119.31,8.36229168]
[1644208371442,47.61848903,119.4,119.31,2.36229168]
[1644208371842,60.18678903,119.4,119.32,14.67919168]
[1644208372041,60.18678903,119.4,119.31,0.25]
[1644208372241,60.18678903,119.4,119.29,2.11229168]
[1644208372442,60.18678903,119.4,119.28,12.08]
[1644208372644,60.18678903,119.4,119.28,6.0]
[1644208372848,12.5757,119.36,119.26,1.16933558]
[1644208373145,42.0331842,119.35,119.23,1.16933558]
[1644208373344,106.9007842,119.35,119.23,1.16933558]
[1644208373543,112.9007842,119.35,119.23,1.16933558]
[1644208373945,112.9007842,119.35,119.22,43.08743558]
[1644208374247,112.9007842,119.35,119.22,43.33743558]
[1644208374647,112.9007842,119.35,119.22,55.41743558]
[1644208375046,36.97397222,119.31,119.24,12.5768]
[1644208375250,36.97397222,119.31,119.24,12.8268]
[1644208375251,37.22397222,119.31,119.24,12.8268]
[1644208375646,37.22397222,119.31,119.24,12.5768]
[1644208376947,37.22397222,119.31,119.24,12.8268]
[1644208379353,0.25,119.31,119.24,12.8268]
[1644208379553,18.8268,119.32,119.24,12.8268]
[1644208380252,39.43608318,119.31,119.24,12.8268]
[1644208380652,12.5754,119.34,119.25,2.11229168]
[1644208380854,12.5754,119.34,119.26,12.5739]